lending/lending_fUSD_20260110
["ID","MTS","AMOUNT","RATE_DAILY","PERIOD"]
[401242059,1768066122080,958743.15744792,0.00014661,2]
[401242060,1768066122115,37003.51432054,0.00014661,2]
[401242081,1768066231492,-272.0,0.00014752,2]
[401242083,1768066231502,-250.0,0.00014752,2]
[401242084,1768066231512,-860.89780057,0.00014752,2]
[401242085,1768066231547,-137.10219943,0.00014752,2]
[401242086,1768066231557,-194.72792766,0.00014752,2]
[401242087,1768066231566,-241.01669439,0.0001476,2]
[401242088,1768066231577,-822.98330561,0.0001476,2]
[401242089,1768066231587,-1742.8153084,0.0001532,2]
[401242090,1768066231657,-500.0,0.0001532,2]
[401242091,1768066231669,-2400.0,0.0001532,2]
[401242092,1768066231682,-1954.0,0.0001532,2]
[401242093,1768066231694,-2109.64631498,0.0001532,2]
[401242094,1768066231711,-34544.36600897,0.0001532,2]
[401242095,1768066231721,-200.0,0.00015354,2]
[401242096,1768066231731,-999.0,0.00015731,3]
[401242097,1768066231741,-168.78764582,0.00015768,2]
[401242098,1768066231751,-163.39,0.00015777,2]
[401242099,1768066231761,-151.0,0.00015918,2]
[401242100,1768066231771,-151.0,0.00015918,2]
[401242101,1768066231780,-151.0,0.00015923,2]
[401242102,1768066231790,-151.0,0.00015923,2]
[401242103,1768066231799,-151.0,0.00015927,2]
[401242104,1768066231809,-151.0,0.00015927,2]
[401242105,1768066231818,-150.0,0.000162,2]
[401242107,1768066231828,-150.0,0.000162,2]
[401242109,1768066231837,-150.0,0.000162,2]
[401242111,1768066231846,-150.0,0.000162,2]
[401242113,1768066231855,-150.0,0.000162,2]
[401242115,1768066231865,-150.0,0.000162,2]
[401242117,1768066231875,-150.0,0.000162,2]
[401242119,1768066231884,-150.0,0.000162,2]
[401242121,1768066231896,-150.0,0.000162,2]
[401242123,1768066231906,-150.0,0.000162,2]
[401242124,1768066231915,-1000.0,0.0001622,2]
[401242125,1768066231925,-250.0,0.00016227,2]
[401242126,1768066231935,-250.0,0.00016227,2]
[401242127,1768066231945,-2508.17633937,0.00016302,2]
[401242128,1768066231957,-1698.82366063,0.00016302,2]
[401242129,1768066231966,-756.34838717,0.000164,2]
[401242130,1768066231978,-93.65161283,0.000164,2]
[401242131,1768066231988,-500.0,0.00016438,2]
[401242132,1768066231998,-600.0,0.00016438,2]
[401242133,1768066232008,-456.34838717,0.00016438,2]
[401242134,1768066232023,-279.26125715,0.00016438,2]
[401242135,1768066232035,-152.39035568,0.00016438,2]
[401242136,1768066232044,-150.0,0.0001665,2]
[401242137,1768066232054,-183.0,0.0001672,2]
[401242138,1768066232064,-482.91,0.00016721,2]
[401242139,1768066232074,-491.03,0.00016728,2]
[401242140,1768066232084,-168.78764582,0.00016834,2]
[401242141,1768066232094,-184.84885982,0.000169,2]
[401242142,1768066232104,-184.84885982,0.000169,2]
[401242143,1768066232114,-41847.31924539,0.00016986,2]
[401242145,1768066237735,-424.4835102,0.00016985,2]
[401242146,1768066237745,-274.78451468,0.00016985,2]
[401242147,1768066237755,-49.96719618,0.00016986,2]
[401242148,1768066237766,-28566.06299568,0.00016986,2]
[401242149,1768066237790,-847.97755342,0.00016986,2]
[401242150,1768066237802,-706.55591932,0.00016986,2]
[401242151,1768066237817,-500.0,0.00016986,2]
[401242152,1768066237829,-274.37209775,0.00016986,2]
[401242153,1768066237844,-304.0,0.00016986,2]
[401242154,1768066237862,-15801.2485822,0.00016986,2]
[401242316,1768066239538,-2911.12206947,0.00016986,2]
[401242334,1768066239698,-922.18333418,0.00016986,2]
[401242340,1768066239754,-500.0,0.00016986,2]
[401242343,1768066239765,-8729.85355906,0.00016986,2]
[401242353,1768066239858,-143272.74744735,0.00016986,2]
[401242355,1768066239868,-250.0,0.00017,2]
[401242357,1768066239878,-150.0,0.000171,2]
[401242359,1768066239887,-150.0,0.000171,2]
[401242362,1768066239897,-159.16121497,0.00017333,2]
[401242363,1768066239907,-1266.0,0.00017341,2]
[401242365,1768066239917,-505.0,0.00017341,2]
[401242368,1768066239927,-914.0,0.00017341,2]
[401242370,1768066239936,-1201.0,0.00017341,2]
[401242372,1768066239946,-1405.0,0.00017341,2]
[401242373,1768066239957,-4820.0,0.00017341,2]
[401242375,1768066239966,-1312.0,0.00017341,2]
[401242378,1768066239976,-2441.065,0.00017341,2]
[401242380,1768066239986,-834.0,0.0001736,2]
[401242382,1768066239995,-998.0,0.00017491,2]
[401242384,1768066240005,-150.0,0.0001755,2]
[401242386,1768066240015,-205.61,0.00017579,2]
[401242388,1768066240024,-2566.84364124,0.0001764,2]
[401242389,1768066240034,-264.0,0.00017668,2]
[401242392,1768066240045,-482.91,0.0001768,2]
[401242394,1768066240055,-184.84885979,0.000178,2]
[401242396,1768066240063,-184.84885979,0.000178,2]
[401242398,1768066240073,-1505.01596193,0.000178,2]
[401242400,1768066240083,-1505.01596188,0.00017811,2]
[401242402,1768066240092,-1505.01596188,0.00017822,2]
[401242404,1768066240102,-1505.01596188,0.00017833,2]
[401242406,1768066240111,-1505.01596188,0.00017844,2]
[401242407,1768066240121,-200.0,0.00017855,2]
[401242409,1768066240131,-1505.01596188,0.00017856,2]
[401242412,1768066240141,-2000.0,0.00017856,2]
[401242414,1768066240151,-200.0,0.00017856,2]
[401242416,1768066240161,-264.0,0.00017894,2]
[401242418,1768066240171,-10000.0,0.000179,2]
[401242420,1768066240181,-168.78764582,0.000179,2]
[401242422,1768066240191,-204.1832064,0.000179,2]
[401242424,1768066240200,-2126.01477206,0.000179,2]
[401242426,1768066240209,-179.69793141,0.000179,3]
[401242428,1768066240219,-452.00994925,0.000179,2]
[401242430,1768066240229,-336.45697024,0.000179,2]
[401242432,1768066240239,-500.0,0.00017973,2]
[401242434,1768066240249,-500.0,0.00017973,2]
[401242436,1768066240259,-500.0,0.00017973,2]
[401242438,1768066240272,-500.0,0.00017973,2]
[401242439,1768066240282,-500.0,0.00017973,2]
[401242442,1768066240292,-500.0,0.00017973,2]
[401242444,1768066240302,-427.49003768,0.00017973,2]
[401242445,1768066240312,-500.0,0.00017973,2]
[401242447,1768066240321,-500.0,0.00017973,2]
[401242449,1768066240331,-500.0,0.00017973,2]
[401242452,1768066240341,-500.0,0.00017973,2]
[401242454,1768066240351,-500.0,0.00017973,2]
[401242456,1768066240360,-500.0,0.00017973,2]
[401242458,1768066240370,-500.0,0.00017973,2]
[401242460,1768066240380,-611.81919763,0.00017973,2]
[401242461,1768066240390,-500.0,0.00017973,2]
[401242464,1768066240401,-500.0,0.00017973,2]
[401242466,1768066240411,-500.0,0.00017973,2]
[401242468,1768066240420,-500.0,0.00017973,2]
[401242470,1768066240429,-151.88776982,0.00017973,2]
[401242472,1768066240439,-500.0,0.00017973,2]
[401242474,1768066240448,-30651.7333135,0.00017997,2]
[401242476,1768066240458,-666.0,0.00017999,2]
[401242478,1768066240468,-300.0,0.00017999,2]
[401242480,1768066240478,-300.0,0.00017999,2]
[401242482,1768066240487,-182.26807864,0.00018,2]
[401242484,1768066240498,-277.74846788,0.00018,2]
[401242486,1768066240508,-152.63811975,0.00018,2]
[401242488,1768066240517,-204.4378503,0.00018,2]
[401242490,1768066240527,-408526.03911029,0.00018,2]
[401242505,1768066240778,-425.63,0.00018,2]
[401242507,1768066240789,-472.8766523,0.00018,2]
[401242509,1768066240800,-546.05395966,0.00018,2]
[401242512,1768066240811,-420.86114321,0.00018,2]
[401242514,1768066240823,-473.93335833,0.00018,2]
[401242516,1768066240834,-3391.7295467,0.00018,2]
[401242892,1768066244757,-151.0,0.00016443,2]
[401242893,1768066244767,-151.0,0.00016443,2]
[401242894,1768066244779,-927.78115562,0.00017867,2]
[401242896,1768066244791,-577.23480626,0.00017867,2]
[401242897,1768066244800,-1727.18844647,0.00018,2]
[401242898,1768066244812,-927.77,0.00018,2]
[401242899,1768066244824,-1743.75217009,0.00018,2]
[401242900,1768066244835,-2584.11823244,0.00018,2]
[401242901,1768066244850,-1797.61271401,0.00018,2]
[401242902,1768066244861,-512.6900035,0.00018,2]
[401242910,1768066245420,-770.5,0.00018,2]
[401242933,1768066245809,-261.98000005,0.00018,2]
[401242934,1768066245823,-688.7483796,0.00018,2]
[401242935,1768066245835,-393.39206397,0.00018,2]
[401242936,1768066245852,-505.62490965,0.00018,2]
[401242964,1768066272574,1000000.0,0.00014661,2]
[401242965,1768066352192,154.57,0.00014661,2]
[401243104,1768067100577,171.28,0.00013291,2]
[401243110,1768067285195,-500.0,0.00015173,2]
[401243111,1768067285225,-1525.47422726,0.000161,2]
[401243112,1768067285257,-300.0,0.00016199,2]
[401243113,1768067285287,-150.0,0.000162,2]
[401243114,1768067285316,-150.0,0.000162,2]
[401243115,1768067285347,-150.0,0.000162,2]
[401243116,1768067285378,-150.0,0.000162,2]
[401243117,1768067285406,-150.0,0.000162,2]
[401243118,1768067285434,-150.0,0.000162,2]
[401243119,1768067285462,-150.0,0.000162,2]
[401243120,1768067285489,-150.0,0.000162,2]
[401243121,1768067285517,-150.0,0.000162,2]
[401243122,1768067285544,-500.40333209,0.00016225,2]
[401243123,1768067285579,-250.0,0.00016225,2]
[401243124,1768067294974,-500.0,0.00015173,2]
[401243125,1768067295002,-500.0,0.00015173,2]
[401243126,1768067295031,-500.0,0.00015173,2]
[401243127,1768067295058,-439.51669539,0.00015173,2]
[401243128,1768067295092,-333.13533576,0.00015173,2]
[401243129,1768067295122,-255.01329761,0.0001615,2]
[401243130,1768067431762,-266.0,0.00015172,2]
[401243131,1768067431772,-19.26095391,0.00015172,2]
[401243137,1768067437730,-280.73904609,0.00015172,2]
[401243138,1768067437740,-1200.0,0.00015172,2]
[401243139,1768067437749,-186.01144065,0.00015172,2]
[401243305,1768067439763,-89.98855935,0.00015172,2]
[401243307,1768067439773,-500.0,0.00015173,2]
[401243309,1768067439782,-500.0,0.00015173,2]
[401243311,1768067439791,-500.0,0.00015173,2]
[401243313,1768067439800,-500.0,0.00015173,2]
[401243315,1768067439810,-500.0,0.00015173,2]
[401243317,1768067439823,-500.0,0.00015173,2]
[401243319,1768067439832,-500.0,0.00015173,2]
[401243321,1768067439841,-1182.63347286,0.00015943,2]
[401243323,1768067439850,-2140.88354505,0.00016309,2]
[401243326,1768067439862,-826.28059818,0.00016309,2]
[401243333,1768067439921,-645.04788305,0.00016309,2]
[401243335,1768067439933,-3497.53797372,0.00016309,2]
[401243337,1768067439943,-150.0,0.0001638,2]
[401243340,1768067439952,-150.0,0.000164,2]
[401243342,1768067439962,-150.0,0.00016425,2]
[401243344,1768067439972,-150.0,0.00016425,2]
[401243345,1768067439981,-5037.81,0.00016438,2]
[401243347,1768067439991,-150.0,0.00016457,2]
[401243349,1768067440001,-150.0,0.0001656,2]
[401243351,1768067440011,-150.0,0.0001656,2]
[401243353,1768067440019,-150.0,0.000166,2]
[401243355,1768067440029,-420.0,0.00016602,2]
[401243357,1768067440039,-150.0,0.0001665,2]
[401243359,1768067440048,-150.0,0.0001665,2]
[401243361,1768067440058,-250.0,0.00016689,2]
[401243363,1768067440067,-300.0,0.0001669,2]
[401243366,1768067440078,-212.06175971,0.0001669,2]
[401243368,1768067440087,-150.0,0.00016714,2]
[401243370,1768067440096,-150.0,0.0001674,2]
[401243371,1768067440105,-36005.50986369,0.00016777,2]
[401243396,1768067440337,-5350.58892367,0.00016777,2]
[401243398,1768067440348,-498.56809228,0.00016777,2]
[401243400,1768067440360,-684.16545354,0.00016777,2]
[401243403,1768067440371,-4257.78598744,0.00016777,2]
[401243405,1768067440383,-953203.38167938,0.00016777,2]
[401243407,1768067440392,-150.0,0.000168,2]
[401243409,1768067440401,-998.0,0.00016867,2]
[401243411,1768067440410,-150.0,0.00016875,2]
[401243413,1768067440420,-150.0,0.00016875,2]
[401243415,1768067440430,-4021.871643,0.00016877,2]
[401243417,1768067440439,-150.0,0.0001692,2]
[401243419,1768067440448,-150.0,0.0001692,2]
[401243421,1768067440457,-150.0,0.00016971,2]
[401243423,1768067440466,-168.0,0.0001698,2]
[401243425,1768067440475,-500.0,0.00016986,2]
[401243427,1768067440485,-150.0,0.00017,2]
[401243429,1768067440494,-250.0,0.00017,2]
[401243431,1768067440503,-150.0,0.000171,2]
[401243433,1768067440513,-150.0,0.000171,2]
[401243435,1768067440522,-150.0,0.000171,2]
[401243437,1768067440531,-150.0,0.000171,2]
[401243439,1768067440541,-200.0,0.00017118,2]
[401243441,1768067440550,-150.0,0.000172,2]
[401243443,1768067440559,-150.0,0.00017229,2]
[401243445,1768067440568,-150.0,0.0001728,2]
[401243447,1768067440577,-150.0,0.0001728,2]
[401243449,1768067440587,-150.0,0.00017325,2]
[401243451,1768067440597,-150.0,0.00017325,2]
[401243453,1768067440606,-1951.75,0.0001733,2]
[401243455,1768067440616,-1330.0,0.00017341,2]
[401243457,1768067440625,-1405.0,0.00017341,2]
[401243459,1768067440634,-3468.0,0.00017341,2]
[401243461,1768067440644,-614.0,0.00017341,2]
[401243463,1768067440653,-1266.0,0.00017341,2]
[401243465,1768067440662,-505.0,0.00017341,2]
[401243467,1768067440671,-566.0,0.00017341,2]
[401243469,1768067440681,-6554.0,0.00017341,2]
[401243471,1768067440689,-4820.0,0.00017341,2]
[401243473,1768067440699,-159.16121497,0.00017353,2]
[401243475,1768067440708,-150.0,0.000174,2]
[401243477,1768067440717,-1076.987,0.000174,2]
[401243479,1768067440727,-150.0,0.0001746,2]
[401243481,1768067440736,-150.0,0.00017486,2]
[401243483,1768067440746,-2000.0,0.000175,2]
[401243485,1768067440755,-168.0,0.00017529,2]
[401243487,1768067440764,-150.0,0.0001755,2]
[401243489,1768067440773,-150.0,0.0001755,2]
[401243491,1768067440783,-150.0,0.000176,2]
[401243493,1768067440793,-150.0,0.0001764,2]
[401243495,1768067440802,-150.0,0.0001764,2]
[401243497,1768067440812,-4419.7131,0.0001764,2]
[401243499,1768067440824,-834.0,0.0001768,2]
[401243501,1768067440833,-3726.2263,0.00017688,2]
[401243503,1768067440843,-6801.7704,0.00017689,2]
[401243505,1768067440853,-4240.9866,0.00017689,2]
[401243507,1768067440864,-2500.0,0.00017689,2]
[401243509,1768067440874,-1740.0035,0.00017689,2]
[401243511,1768067440883,-150.81034047,0.00017693,2]
[401243513,1768067440896,-168.78764582,0.00017693,2]
[401243516,1768067440906,-150.0,0.00017699,2]
[401243517,1768067440915,-150.0,0.00017699,2]
[401243520,1768067440926,-150.0,0.00017699,2]
[401243522,1768067440936,-150.0,0.00017699,2]
[401243552,1768067441207,-152.08698658,0.00017699,2]
[401243555,1768067441217,-150.0,0.00017699,2]
[401243556,1768067441227,-500.0,0.00017699,2]
[401243558,1768067441237,-500.0,0.00017699,2]
[401243560,1768067441247,-2855.13444409,0.000177,2]
[401243562,1768067441257,-600.0,0.0001771,2]
[401243564,1768067441266,-2855.13444409,0.00017722,2]
[401243566,1768067441276,-213.57804038,0.00017738,2]
[401243569,1768067441285,-150.0,0.00017743,2]
[401243571,1768067441294,-2855.13444409,0.00017744,2]
[401243573,1768067441304,-150.0,0.00017754,2]
[401243575,1768067441313,-150.0,0.00017754,2]
[401243577,1768067441322,-150.0,0.00017754,2]
[401243579,1768067441332,-150.0,0.00017754,2]
[401243581,1768067441341,-500.0,0.00017754,2]
[401243583,1768067441351,-500.0,0.00017754,2]
[401243585,1768067441360,-168.0,0.00017764,2]
[401243587,1768067441369,-2855.13444409,0.00017767,2]
[401243589,1768067441379,-150.0,0.00017775,2]
[401243591,1768067441388,-150.0,0.00017775,2]
[401243593,1768067441398,-259.48019441,0.00017788,2]
[401243595,1768067441407,-500.0,0.00017788,2]
[401243597,1768067441416,-500.0,0.00017788,2]
[401243599,1768067441425,-500.0,0.00017788,2]
[401243601,1768067441435,-500.0,0.00017788,2]
[401243603,1768067441443,-500.0,0.00017788,2]
[401243605,1768067441452,-500.0,0.00017788,2]
[401243607,1768067441461,-500.0,0.00017788,2]
[401243609,1768067441470,-500.0,0.00017788,2]
[401243611,1768067441479,-500.0,0.00017788,2]
[401243613,1768067441489,-500.0,0.00017788,2]
[401243615,1768067441498,-500.0,0.00017788,2]
[401243617,1768067441508,-500.0,0.00017788,2]
[401243619,1768067441517,-300.0,0.00017788,2]
[401243621,1768067441527,-500.0,0.00017788,2]
[401243623,1768067441537,-500.0,0.00017788,2]
[401243625,1768067441547,-500.0,0.00017788,2]
[401243627,1768067441556,-385.32174972,0.00017788,2]
[401243629,1768067441565,-500.00000001,0.00017788,2]
[401243631,1768067441575,-500.0,0.00017788,2]
[401243633,1768067441584,-500.0,0.00017788,2]
[401243635,1768067441594,-500.0,0.00017788,2]
[401243637,1768067441603,-500.0,0.00017788,2]
[401243639,1768067441612,-500.0,0.00017788,2]
[401243641,1768067441621,-500.0,0.00017788,2]
[401243643,1768067441631,-623.96972889,0.00017788,2]
[401243645,1768067441641,-500.0,0.00017788,2]
[401243647,1768067441650,-500.0,0.00017788,2]
[401243649,1768067441660,-500.0,0.00017788,2]
[401243652,1768067441669,-500.0,0.00017788,2]
[401243653,1768067441679,-500.0,0.00017788,2]
[401243655,1768067441688,-500.0,0.00017788,2]
[401243658,1768067441699,-500.0,0.00017788,2]
[401243660,1768067441708,-500.0,0.00017788,2]
[401243662,1768067441718,-500.0,0.00017788,2]
[401243664,1768067441727,-500.0,0.00017788,2]
[401243666,1768067441736,-500.0,0.00017788,2]
[401243668,1768067441746,-500.0,0.00017788,2]
[401243670,1768067441756,-500.0,0.00017788,2]
[401243672,1768067441765,-500.0,0.00017788,2]
[401243674,1768067441775,-500.0,0.00017788,2]
[401243676,1768067441784,-500.0,0.00017788,2]
[401243678,1768067441794,-500.0,0.00017788,2]
[401243680,1768067441803,-500.0,0.00017788,2]
[401243682,1768067441813,-500.0,0.00017788,2]
[401243684,1768067441823,-500.0,0.00017788,2]
[401243686,1768067441832,-284.78,0.00017788,2]
[401243688,1768067441841,-3370.0,0.00017788,2]
[401243690,1768067441850,-2855.13444409,0.00017789,2]
[401243692,1768067441859,-150.0,0.000178,2]
[401243694,1768067441868,-200.0,0.00017809,2]
[401243695,1768067441878,-200.0,0.00017809,2]
[401243698,1768067441888,-150.0,0.00017809,2]
[401243699,1768067441898,-150.0,0.00017809,2]
[401243700,1768067441910,-500.0,0.00017809,2]
[401243701,1768067441919,-189.41796982,0.00017809,2]
[401243702,1768067441928,-2855.13444409,0.00017811,2]
[401243703,1768067441937,-150.0,0.0001782,2]
[401243704,1768067441946,-2855.13444409,0.00017833,2]
[401243705,1768067441955,-200.0,0.00017855,2]
[401243706,1768067441964,-2855.13444409,0.00017856,2]
[401243707,1768067441973,-2000.0,0.00017856,2]
[401243708,1768067441982,-200.0,0.00017856,2]
[401243709,1768067441991,-232.10117033,0.00017863,2]
[401243711,1768067442000,-194.13148969,0.00017863,2]
[401243713,1768067442009,-500.0,0.00017863,2]
[401243714,1768067442018,-168.0,0.00017876,2]
[401243716,1768067442027,-2855.13444409,0.00017878,2]
[401243718,1768067442036,-10000.0,0.000179,2]
[401243720,1768067442045,-204.1832064,0.000179,2]
[401243722,1768067442054,-179.69793141,0.000179,3]
[401243724,1768067442062,-582.1888146,0.000179,2]
[401243726,1768067442071,-2855.13444409,0.000179,2]
[401243728,1768067442080,-3720.5258511,0.000179,2]
[401243730,1768067442090,-166.66,0.00017909,2]
[401243733,1768067442099,-500.0,0.00017918,2]
[401243734,1768067442108,-5371.9806635,0.00017965,2]
[401243737,1768067442117,-390664.8373987,0.00017965,2]
[401243739,1768067442127,-500.0,0.00017973,2]
[401243741,1768067442136,-427.49003768,0.00017973,2]
[401243743,1768067442145,-500.0,0.00017973,2]
[401243745,1768067442155,-500.0,0.00017973,2]
[401243747,1768067442164,-500.0,0.00017973,2]
[401243749,1768067442174,-500.0,0.00017973,2]
[401243751,1768067442183,-500.0,0.00017973,2]
[401243753,1768067442193,-611.81919763,0.00017973,2]
[401243755,1768067442202,-500.0,0.00017973,2]
[401243757,1768067442211,-500.0,0.00017973,2]
[401243759,1768067442220,-500.0,0.00017973,2]
[401243761,1768067442229,-500.0,0.00017973,2]
[401243763,1768067442239,-500.0,0.00017973,2]
[401243765,1768067442249,-500.0,0.00017973,2]
[401243767,1768067442259,-500.0,0.00017973,2]
[401243769,1768067442268,-500.0,0.00017973,2]
[401243771,1768067442277,-500.0,0.00017973,2]
[401243773,1768067442287,-500.0,0.00017973,2]
[401243775,1768067442296,-500.0,0.00017973,2]
[401243777,1768067442306,-500.0,0.00017973,2]
[401243779,1768067442315,-500.0,0.00017973,2]
[401243781,1768067442324,-500.0,0.00017973,2]
[401243783,1768067442334,-183.2165965,0.00017973,2]
[401243785,1768067442343,-632.76984978,0.00017973,2]
[401243787,1768067442352,-171.83605725,0.00017973,2]
[401243788,1768067442361,-500.0,0.00017973,2]
[401243791,1768067442371,-500.0,0.00017973,2]
[401243792,1768067442380,-500.0,0.00017973,2]
[401243794,1768067442390,-500.0,0.00017973,2]
[401243796,1768067442399,-200.0,0.00017973,2]
[401243798,1768067442409,-1428.32031009,0.0001799,2]
[401243800,1768067442418,-1428.32031009,0.0001799,2]
[401243802,1768067442428,-1428.32031009,0.0001799,2]
[401243804,1768067442437,-5714.5586137,0.00017998,2]
[401243806,1768067442448,-300.0,0.00017999,2]
[401243808,1768067442457,-500.0,0.00017999,2]
[401243810,1768067442468,-500.0,0.00017999,2]
[401243813,1768067442477,-500.0,0.00017999,2]
[401243814,1768067442487,-500.0,0.00017999,2]
[401243817,1768067442496,-500.0,0.00017999,2]
[401243819,1768067442506,-500.0,0.00017999,2]
[401243820,1768067442515,-500.0,0.00017999,2]
[401243822,1768067442524,-506.38314442,0.00017999,2]
[401243824,1768067442534,-300.0,0.00017999,2]
[401243826,1768067442542,-666.0,0.00017999,2]
[401243828,1768067442551,-230.4348929,0.00018,2]
[401243830,1768067442561,-207.56026211,0.00018,2]
[401243833,1768067442570,-276.8743637,0.00018,2]
[401243835,1768067442580,-188.7423394,0.00018,2]
[401243837,1768067442590,-150.0,0.00018,2]
[401243839,1768067442599,-252.12379273,0.00018,2]
[401243841,1768067442608,-163.1905987,0.00018,2]
[401243843,1768067442617,-244.97032635,0.00018,2]
[401243846,1768067442627,-3106439.33898996,0.00018,2]
[401243908,1768067443214,-603.2142,0.00018,2]
[401243910,1768067443226,-2979.06507186,0.00018,2]
[401243916,1768067443274,-1266.68543103,0.00018,2]
[401243928,1768067443374,-930.68984301,0.00018,2]
[401244022,1768067445690,-1248.68314574,0.00017341,2]
[401244023,1768067445744,-63.31685426,0.00017341,2]
[401244024,1768067445753,-460.17901159,0.00017341,2]
[401244025,1768067445764,-416.30793719,0.00017341,2]
[401244026,1768067445796,-343.53915486,0.00017341,2]
[401244027,1768067445807,-500.0,0.00017341,2]
[401244028,1768067445822,-721.03889636,0.00017341,2]
[401244029,1768067445831,-227.12539939,0.000179,2]
[401244030,1768067445843,-109.33157085,0.000179,2]
[401244031,1768067445853,-48491.11138353,0.00018,2]
[401244032,1768067445866,-650.4640002,0.00018,2]
[401244033,1768067446010,-433.7768547,0.00018,2]
[401244035,1768067652135,-317.8102,0.00016516,2]
[401244036,1768067652161,-151.0,0.00016728,2]
[401244037,1768067652187,-151.0,0.00016728,2]
[401244038,1768067652211,-914.0,0.00017341,2]
[401244039,1768067652237,-1201.0,0.00017341,2]
[401244040,1768067652272,-250.0,0.00017341,2]
[401244041,1768067652300,-150.0,0.00017341,2]
[401244042,1768067652324,-150.0,0.00017341,2]
[401244043,1768067652348,-150.0,0.00017341,2]
[401244044,1768067652376,-150.0,0.00017341,2]
[401244045,1768067652400,-150.0,0.00017341,2]
[401244046,1768067652425,-150.0,0.00017341,2]
[401244047,1768067652448,-150.0,0.00017341,2]
[401244048,1768067652473,-150.0,0.00017341,2]
[401244049,1768067652496,-150.0,0.00017341,2]
[401244050,1768067652520,-159.16121497,0.00017344,2]
[401244051,1768067652546,-168.0,0.00017607,2]
[401244052,1768067652571,-2209.85655,0.0001764,2]
[401244053,1768067652595,-150.0,0.00017699,2]
[401244054,1768067652618,-150.0,0.00017699,2]
[401244055,1768067652642,-150.0,0.00017699,2]
[401244056,1768067652672,-150.0,0.00017699,2]
[401244057,1768067652697,-150.0,0.00017699,2]
[401244058,1768067652722,-150.0,0.00017754,2]
[401244059,1768067652751,-150.0,0.00017754,2]
[401244060,1768067652778,-929.53906706,0.000178,2]
[401244061,1768067652802,-150.0,0.00017808,2]
[401244062,1768067652827,-200.0,0.00017809,2]
[401244063,1768067652854,-200.0,0.00017809,2]
[401244064,1768067652878,-2000.0,0.00017856,2]
[401244065,1768067652903,-200.0,0.00017856,2]
[401244066,1768067652928,-200.0,0.00017863,2]
[401244067,1768067652956,-208.6358865,0.00017873,2]
[401244068,1768067652984,-43089.99708147,0.000179,2]
[401244075,1768067757684,-500.0,0.00016516,2]
[401244076,1768067757714,-166.66,0.00016546,2]
[401244077,1768067757743,-151.0,0.00016681,2]
[401244078,1768067757773,-151.0,0.00016681,2]
[401244079,1768067757802,-151.0,0.00016712,2]
[401244080,1768067757831,-151.0,0.00016712,2]
[401244081,1768067757861,-166.66,0.00016894,2]
[401244082,1768067757892,-166.66,0.00017242,2]
[401244083,1768067757923,-566.0,0.00017341,2]
[401244084,1768067765867,-151.0,0.00016762,2]
[401244085,1768067765899,-151.0,0.00016762,2]
[401244086,1768067765931,-300.0,0.0001734,2]
[401244087,1768067765959,-2242.01,0.00017341,2]
[401244129,1768068631924,-287.0,0.00016331,2]
[401244130,1768068631935,-133.51999999,0.000164,2]
[401244131,1768068631948,-700.48000001,0.000164,2]
[401244132,1768068631958,-259.2,0.00016604,2]